[Event "GM ZIA Smirity-A 2025"]
[Site "Dhaka"]
[Date "2025.02.18"]
[Round "4.1"]
[White "Sakline Mostafa, Sajid"]
[Black "Mohammad, Javed"]
[Result "1-0"]
[Annotator "ChessBase"]
[ECO "A95"]
[WhiteElo "2199"]
[BlackElo "2139"]
[PlyCount "91"]
[EventDate "2025.02.17"]
[EventType "swiss"]
[EventCountry "BAN"]
[SourceTitle "playchess.com"]
[Source "ChessBase"]
[SourceQuality "1"]
[TimeControl "5400+30"]

1. Nf3 {[%emt 0:00:02]} d5 {[%emt 0:06:20]} 2. d4 {[%emt 0:00:27]} Nf6 {[%emt 0:01:04]} 3. c4 {[%emt 0:00:34]} e6 {[%emt 0:01:07]} 4. g3 {[%emt 0:00:17]} Bb4+ {[%emt 0:01:17]} 5. Bd2 {[%emt 1:31:40]} Be7 {[%emt 0:00:09]} 6. Bg2 {[%emt 0:00:00]} O-O {[%emt 0:00:18]} 7. O-O {[%emt 0:00:00]} c6 {[%emt 0:00:40]} 8. Bf4 {[%emt 0:00:00]} Nh5 {[%emt 0:04:27]} 9. Bc1 {[%emt 0:00:00]} f5 {[%emt 0:02:15]} 10. Nc3 {[%emt 0:00:00]} Nf6 {[%emt 0:05:31]} 11. b3 {[%emt 0:00:00]} Qe8 {[%emt 0:05:22]} 12. e3 {[%emt 0:00:00]} Nbd7 {[%emt 0:01:25]} 13. Bb2 {[%emt 0:00:00]} Qh5 {[%emt 0:01:44]} 14. Ne2 {[%emt 0:00:00]} g5 {[%emt 0:00:48]} 15. Qc1 {[%emt 0:00:00]} Ne4 {[%emt 0:04:08]} 16. Ba3 {[%emt 0:00:00]} Bxa3 {[%emt 0:07:28]} 17. Qxa3 {[%emt 0:00:00]} Ndf6 {[%emt 0:02:06]} 18. h3 {[%emt 0:00:00]} Bd7 {[%emt 0:04:42]} 19. Rfe1 {[%emt 0:00:00]} Qh6 {[%emt 0:12:28]} 20. Ne5 {[%emt 0:00:00]} Rae8 {[%emt 0:07:58]} 21. Qxa7 {[%emt 0:08:00]} Bc8 {[%emt 0:00:56]} 22. Qa3 {[%emt 0:00:00]} Nh5 {[%emt 0:07:53]} 23. Qc1 {[%emt 0:00:00]} f4 {[%emt 0:00:36]} 24. exf4 {[%emt 0:00:00]} gxf4 {[%emt 0:00:09]} 25. g4 {[%emt 0:00:00]} Ng7 {[%emt 0:02:33]} 26. f3 {[%emt 0:00:00]} Ng5 {[%emt 0:20:06]} 27. Kh2 {[%emt 0:00:00]} Rf6 {[%emt 0:00:00]} 28. Nxf4 Nxf3+ {[%emt 0:01:00]} 29. Nxf3 {[%emt 0:00:00]} Qxf4+ {[%emt 0:00:00]} 30. Qxf4 {[%emt 0:00:00]} Rxf4 {[%emt 0:00:00]} 31. Rad1 {[%emt 0:00:00]} Ref8 {[%emt 0:00:00]} 32. Kg3 {[%emt 0:00:00]} h5 {[%emt 0:00:00]} 33. Rf1 {[%emt 0:00:00]} hxg4 {[%emt 0:00:00]} 34. hxg4 {[%emt 0:00:00]} dxc4 {[%emt 0:00:00]} 35. bxc4 {[%emt 0:00:00]} c5 {[%emt 0:00:00]} 36. Ne5 {[%emt 0:00:00]} Rxf1 {[%emt 0:00:32]} 37. Rxf1 {[%emt 0:00:00]} cxd4 {[%emt 0:00:33]} 38. Rxf8+ {[%emt 0:00:00]} Kxf8 {[%emt 0:00:07]} 39. Kf4 {[%emt 0:00:00]} b6 {[%emt 0:00:30]} 40. Bc6 {[%emt 0:00:00]} Ne8 {[%emt 0:01:51]} 41. Bxe8 {[%emt 0:00:00]} Kxe8 {[%emt 0:00:03]} 42. Ke4 {[%emt 0:00:00]} Ke7 {[%emt 0:00:44]} 43. g5 {[%emt 0:00:00]} Bb7+ {[%emt 0:00:52]} 44. Kxd4 {[%emt 0:00:00]} Kd6 {[%emt 0:00:11]} 45. g6 {[%emt 0:00:00]} Ke7 {[%emt 0:00:09]} 46. g7 {[%emt 0:00:00]} 1-0

[Event "GM ZIA Smirity-A 2025"]
[Site "Dhaka"]
[Date "2025.02.18"]
[Round "4.2"]
[White "Kazi Zarin, Tasnim"]
[Black "Zia, Tahsin Tajwar"]
[Result "0-1"]
[Annotator "ChessBase"]
[ECO "B10"]
[WhiteElo "1897"]
[BlackElo "2323"]
[PlyCount "92"]
[EventDate "2025.02.17"]
[EventType "swiss"]
[EventCountry "BAN"]
[SourceTitle "playchess.com"]
[Source "ChessBase"]
[SourceQuality "1"]
[TimeControl "5400+30"]

1. e4 {[%emt 0:00:10]} c6 {[%emt 0:02:03]} 2. Nf3 {[%emt 0:04:05]} d5 {[%emt 0:00:31]} 3. d3 {[%emt 0:00:11]} dxe4 {[%emt 0:00:06]} 4. dxe4 {[%emt 0:00:04]} Qxd1+ {[%emt 0:00:06]} 5. Kxd1 {[%emt 0:00:01]} Nf6 {[%emt 0:00:07]} 6. Nfd2 {[%emt 0:00:32]} g5 {[%emt 0:00:21]} 7. Na3 {[%emt 0:02:41]} h5 {[%emt 0:00:34]} 8. Bd3 {[%emt 0:01:33]} h4 {[%emt 0:00:18]} 9. h3 {[%emt 0:01:32]} g4 {[%emt 0:01:27]} 10. hxg4 {[%emt 0:00:35]} Nxg4 {[%emt 0:00:56]} 11. Ke2 {[%emt 0:03:11]} Ne5 {[%emt 0:01:01]} 12. Nac4 {[%emt 0:02:27]} Bg4+ {[%emt 0:11:27]} 13. f3 {[%emt 0:01:21]} Nxd3 {[%emt 0:00:08]} 14. Kxd3 {[%emt 0:05:24]} Be6 {[%emt 0:00:26]} 15. Nb3 {[%emt 0:02:38]} Na6 {[%emt 0:01:07]} 16. Ne3 {[%emt 0:00:41]} Bg7 {[%emt 0:01:03]} 17. Ke2 {[%emt 0:05:47]} Be5 {[%emt 0:02:27]} 18. Rb1 {[%emt 0:04:31]} O-O-O {[%emt 0:02:07]} 19. Bd2 {[%emt 0:01:20]} Rdg8 {[%emt 0:13:17]} 20. Bc3 {[%emt 0:00:48]} Bxc3 {[%emt 0:01:50]} 21. bxc3 {[%emt 0:00:02]} Kc7 {[%emt 0:03:14]} 22. Kf2 {[%emt 0:03:23]} Rh5 {[%emt 0:01:29]} 23. Rh2 {[%emt 0:04:57]} Nc5 {[%emt 0:05:07]} 24. Nf5 {[%emt 0:09:55]} Na4 {[%emt 0:06:39]} 25. Rxh4 {[%emt 0:04:01]} Rxh4 {[%emt 0:00:12]} 26. Nxh4 {[%emt 0:00:02]} Nxc3 {[%emt 0:00:17]} 27. Ra1 {[%emt 0:01:15]} Rd8 {[%emt 0:01:36]} 28. Ke3 {[%emt 0:07:03]} Bc4 {[%emt 0:04:27]} 29. Nf5 {[%emt 0:03:46]} e6 {[%emt 0:01:32]} 30. Ng3 {[%emt 0:01:52]} b6 {[%emt 0:04:14]} 31. a4 {[%emt 0:01:49]} e5 {[%emt 0:03:32]} 32. Nd2 {[%emt 0:01:22]} Ba6 {[%emt 0:02:13]} 33. Nf5 {[%emt 0:04:34]} Ne2 {[%emt 0:02:09]} 34. a5 {[%emt 0:01:15]} Nf4 {[%emt 0:01:20]} 35. axb6+ {[%emt 0:00:23]} Kxb6 {[%emt 0:00:49]} 36. Rb1+ {[%emt 0:01:54]} Kc7 {[%emt 0:02:11]} 37. Rg1 {[%emt 0:01:10]} Rb8 {[%emt 0:04:28]} 38. g3 {[%emt 0:02:22]} Ne6 {[%emt 0:00:06]} 39. Ra1 {[%emt 0:00:24]} Nc5 {[%emt 0:01:29]} 40. Rb1 {[%emt 0:01:02]} Rh8 {[%emt 0:00:50]} 41. Nb3 {[%emt 0:05:03]} Rh2 {[%emt 0:01:16]} 42. f4 {[%emt 0:01:24]} exf4+ {[%emt 0:07:30]} 43. Kxf4 {[%emt 0:03:32]} Rf2+ {[%emt 0:02:44]} 44. Ke3 {[%emt 0:02:16]} Re2+ {[%emt 0:00:31]} 45. Kd4 {[%emt 0:00:30]} Rxe4+ {[%emt 0:00:42]} 46. Kxc5 {[%emt 0:00:29]} Re2 {[%emt 0:11:31]} 0-1

[Event "GM ZIA Smirity-A 2025"]
[Site "Dhaka"]
[Date "2025.02.18"]
[Round "4.4"]
[White "Wadifa, Ahmed"]
[Black "Anata, Choudhury"]
[Result "1/2-1/2"]
[Annotator "ChessBase"]
[ECO "B90"]
[WhiteElo "2053"]
[BlackElo "2206"]
[PlyCount "67"]
[EventDate "2025.02.17"]
[EventType "swiss"]
[EventCountry "BAN"]
[SourceTitle "playchess.com"]
[Source "ChessBase"]
[SourceQuality "1"]
[TimeControl "5400+30"]

1. e4 {[%emt 0:01:13]} c5 {[%emt 0:00:15]} 2. Nf3 {[%emt 0:00:06]} d6 {[%emt 0:00:08]} 3. d4 {[%emt 0:00:05]} cxd4 {[%emt 0:00:07]} 4. Nxd4 {[%emt 0:00:04]} Nf6 {[%emt 0:00:10]} 5. Nc3 {[%emt 0:00:05]} a6 {[%emt 0:00:06]} 6. Be3 {[%emt 0:00:11]} e5 {[%emt 0:00:08]} 7. Nb3 {[%emt 0:00:03]} Be7 {[%emt 0:00:08]} 8. f3 {[%emt 0:00:06]} Be6 {[%emt 0:00:21]} 9. Qd2 {[%emt 0:00:08]} h6 {[%emt 0:00:10]} 10. O-O-O {[%emt 0:00:19]} h5 {[%emt 0:00:08]} 11. Kb1 {[%emt 0:00:40]} Nbd7 {[%emt 0:00:16]} 12. Nd5 {[%emt 0:06:00]} Nxd5 {[%emt 0:04:30]} 13. exd5 {[%emt 0:00:11]} Bf5 {[%emt 0:00:07]} 14. Bd3 {[%emt 0:03:59]} Bxd3 {[%emt 0:00:45]} 15. Qxd3 {[%emt 0:02:52]} Bg5 {[%emt 0:00:16]} 16. Bf2 {[%emt 0:02:35]} b5 {[%emt 0:01:45]} 17. Rhe1 {[%emt 0:03:39]} O-O {[%emt 0:01:50]} 18. h4 {[%emt 0:07:31]} Bxh4 {[%emt 0:04:03]} 19. Bxh4 {[%emt 0:00:30]} Qxh4 {[%emt 0:00:10]} 20. Rh1 {[%emt 0:00:06]} Qg5 {[%emt 0:06:59]} 21. g4 {[%emt 0:01:40]} Qg6 {[%emt 0:03:14]} 22. Qe2 {[%emt 0:01:19]} hxg4 {[%emt 0:00:26]} 23. fxg4 {[%emt 0:00:13]} f5 {[%emt 0:02:09]} 24. gxf5 {[%emt 0:01:19]} Rxf5 {[%emt 0:00:11]} 25. Qh2 {[%emt 0:08:47]} Raf8 {[%emt 0:02:02]} 26. Rdg1 {[%emt 0:01:42]} Rg5 {[%emt 0:01:18]} 27. Rxg5 {[%emt 0:03:15]} Qxg5 {[%emt 0:00:14]} 28. Qh7+ {[%emt 0:00:37]} Kf7 {[%emt 0:01:19]} 29. Qh3 {[%emt 0:00:23]} Qe7 {[%emt 0:02:42]} 30. Qh5+ {[%emt 0:01:26]} Kg8 {[%emt 0:00:11]} 31. Qh7+ {[%emt 0:01:01]} Kf7 {[%emt 0:00:17]} 32. Qh5+ {[%emt 0:09:51]} Kg8 {[%emt 0:00:23]} 33. Qh7+ {[%emt 0:00:09]} Kf7 {[%emt 0:00:08]} 34. Qh5+ {[%emt 0:00:09]} 1/2-1/2

[Event "GM ZIA Smirity-A 2025"]
[Site "Dhaka"]
[Date "2025.02.18"]
[Round "4.5"]
[White "Sajidul, Haque"]
[Black "Mehdi Hasan Parag"]
[Result "0-1"]
[Annotator "ChessBase"]
[ECO "A11"]
[WhiteElo "2107"]
[BlackElo "2158"]
[PlyCount "134"]
[EventDate "2025.02.17"]
[EventType "swiss"]
[EventCountry "BAN"]
[SourceTitle "playchess.com"]
[Source "ChessBase"]
[SourceQuality "1"]
[TimeControl "5400+30"]

1. Nf3 {[%emt 0:00:03]} d5 {[%emt 0:02:25]} 2. e3 {[%emt 0:00:54]} Nf6 {[%emt 1:29:05]} 3. c4 {[%emt 0:00:16]} c6 {[%emt 0:00:00]} 4. Nc3 {[%emt 0:00:31]} e6 {[%emt 0:00:00]} 5. b3 {[%emt 0:00:12]} Nbd7 {[%emt 0:00:00]} 6. Qc2 {[%emt 0:00:10]} Bd6 {[%emt 0:00:00]} 7. Bb2 {[%emt 0:00:29]} O-O {[%emt 0:00:00]} 8. Be2 {[%emt 0:00:10]} e5 {[%emt 0:00:00]} 9. cxd5 {[%emt 0:00:26]} cxd5 {[%emt 0:00:00]} 10. Nb5 {[%emt 0:00:17]} Bb8 {[%emt 0:00:00]} 11. Rc1 {[%emt 0:03:51]} e4 {[%emt 0:00:00]} 12. Nfd4 {[%emt 0:04:50]} a6 {[%emt 0:00:00]} 13. Nc7 {[%emt 0:00:22]} Bxc7 {[%emt 0:00:00]} 14. Qxc7 {[%emt 0:00:46]} Qxc7 {[%emt 0:00:00]} 15. Rxc7 {[%emt 0:00:04]} Re8 {[%emt 0:00:00]} 16. Nf5 {[%emt 0:06:00]} Re6 {[%emt 0:00:00]} 17. O-O {[%emt 0:14:39]} Ne8 {[%emt 0:00:00]} 18. Rc2 {[%emt 0:00:48]} Ndf6 {[%emt 0:00:00]} 19. Rfc1 {[%emt 0:04:48]} Bd7 {[%emt 0:00:00]} 20. Nd4 {[%emt 0:04:35]} Re7 {[%emt 0:00:00]} 21. f4 {[%emt 0:09:12]} exf3 {[%emt 0:00:00]} 22. gxf3 {[%emt 0:00:13]} Bh3 {[%emt 0:00:00]} 23. Kf2 {[%emt 0:04:09]} Rd7 {[%emt 0:00:00]} 24. Kg3 {[%emt 0:09:16]} Be6 {[%emt 0:00:00]} 25. d3 {[%emt 0:00:38]} Nd6 {[%emt 0:00:00]} 26. f4 {[%emt 0:03:06]} Nfe8 {[%emt 0:00:00]} 27. Bf3 {[%emt 0:01:23]} Rdd8 {[%emt 0:00:00]} 28. e4 {[%emt 0:01:46]} dxe4 {[%emt 0:00:00]} 29. dxe4 {[%emt 0:00:31]} Bd7 {[%emt 0:00:00]} 30. Kf2 {[%emt 0:07:27]} Nb5 {[%emt 0:14:00]} 31. Ke3 {[%emt 0:02:56]} Nxd4 {[%emt 0:00:00]} 32. Bxd4 {[%emt 0:00:15]} Bc6 {[%emt 0:00:00]} 33. Bb6 {[%emt 0:02:40]} Rd7 {[%emt 0:00:00]} 34. e5 {[%emt 0:01:03]} Bxf3 {[%emt 0:00:00]} 35. Kxf3 {[%emt 0:03:01]} g6 {[%emt 0:00:00]} 36. Rc8 {[%emt 0:00:41]} Rxc8 {[%emt 0:00:00]} 37. Rxc8 {[%emt 0:00:01]} Re7 {[%emt 0:00:00]} 38. Bc5 {[%emt 0:01:55]} Re6 {[%emt 0:00:00]} 39. Rb8 {[%emt 0:00:19]} b5 {[%emt 0:00:00]} 40. Bd6 {[%emt 0:00:50]} Kg7 {[%emt 0:00:00]} 41. Rb6 {[%emt 0:01:32]} a5 {[%emt 0:00:00]} 42. Rxb5 {[%emt 0:07:50]} Nxd6 {[%emt 0:06:00]} 43. exd6 {[%emt 0:00:06]} Rxd6 {[%emt 0:00:00]} 44. Rxa5 {[%emt 0:00:10]} Rd3+ {[%emt 0:00:00]} 45. Ke4 {[%emt 0:01:23]} Rh3 {[%emt 0:00:00]} 46. b4 {[%emt 0:00:27]} Rxh2 {[%emt 0:00:00]} 47. a4 {[%emt 0:04:35]} Rb2 {[%emt 0:00:00]} 48. Rb5 {[%emt 0:00:29]} h5 {[%emt 0:00:00]} 49. Kf3 {[%emt 0:00:02]} Rb3+ {[%emt 0:00:00]} 50. Kg2 {[%emt 0:00:16]} Rb2+ {[%emt 0:00:00]} 51. Kg3 {[%emt 0:00:45]} Rb3+ {[%emt 0:00:00]} 52. Kh4 {[%emt 0:01:41]} Kh6 {[%emt 0:00:00]} 53. Rb6 {[%emt 0:01:09]} Rf3 {[%emt 0:00:00]} 54. a5 {[%emt 0:00:27]} Rxf4+ {[%emt 0:00:00]} 55. Kg3 {[%emt 0:00:12]} Rc4 {[%emt 0:00:00]} 56. a6 {[%emt 0:00:32]} Rc3+ {[%emt 0:00:00]} 57. Kg2 {[%emt 0:01:06]} Rc2+ {[%emt 0:00:00]} 58. Kf3 {[%emt 0:00:34]} Rc3+ {[%emt 0:00:00]} 59. Kf4 {[%emt 0:00:37]} Ra3 {[%emt 0:00:00]} 60. b5 {[%emt 0:00:11]} Ra4+ {[%emt 0:00:00]} 61. Ke5 {[%emt 0:00:40]} h4 {[%emt 0:00:00]} 62. Rb8 {[%emt 0:00:37]} Kg7 {[%emt 0:00:00]} 63. Kd5 h3 {[%emt 0:00:00]} 64. Re8 g5 {[%emt 0:11:00]} 65. Re4 {[%emt 0:01:23]} g4 {[%emt 0:00:30]} 66. Re1 {[%emt 0:00:34]} h2 {[%emt 0:00:30]} 67. Rb1 {[%emt 0:00:37]} g3 {[%emt 0:00:00]} 0-1

[Event "GM ZIA Smirity-A 2025"]
[Site "Dhaka"]
[Date "2025.02.18"]
[Round "4.6"]
[White "Ghosh, Chanchal Kumer"]
[Black "Islam, Khandaker Aminul"]
[Result "0-1"]
[Annotator "ChessBase"]
[ECO "B32"]
[WhiteElo "2041"]
[BlackElo "2169"]
[PlyCount "138"]
[EventDate "2025.02.17"]
[EventType "swiss"]
[EventCountry "BAN"]
[SourceTitle "playchess.com"]
[Source "ChessBase"]
[SourceQuality "1"]
[TimeControl "5400+30"]

1. e4 {[%emt 0:00:11]} c5 {[%emt 0:00:05]} 2. Nf3 {[%emt 0:00:12]} Nc6 {[%emt 0:00:02]} 3. d4 {[%emt 0:00:10]} cxd4 {[%emt 0:00:06]} 4. Nxd4 {[%emt 0:00:03]} e5 {[%emt 0:00:12]} 5. Nb5 {[%emt 0:01:51]} d6 {[%emt 0:00:06]} 6. N1c3 {[%emt 0:00:16]} a6 {[%emt 0:00:06]} 7. Na3 {[%emt 0:00:16]} Be7 {[%emt 0:00:26]} 8. Be3 {[%emt 0:01:07]} Nf6 {[%emt 0:03:22]} 9. Nc4 {[%emt 0:00:57]} b5 {[%emt 0:03:39]} 10. Nb6 {[%emt 0:08:04]} Rb8 {[%emt 0:00:02]} 11. Nbd5 {[%emt 0:01:47]} O-O {[%emt 0:01:49]} 12. Be2 {[%emt 0:01:21]} Kh8 {[%emt 0:04:03]} 13. Nxf6 {[%emt 0:05:44]} Bxf6 {[%emt 0:00:08]} 14. Nd5 {[%emt 0:00:18]} Bg5 {[%emt 0:00:35]} 15. Qd3 {[%emt 0:02:24]} Be6 {[%emt 0:02:05]} 16. c3 {[%emt 0:00:41]} Bxd5 {[%emt 0:04:49]} 17. Qxd5 {[%emt 0:00:34]} Bxe3 {[%emt 0:00:46]} 18. fxe3 {[%emt 0:03:46]} Ne7 {[%emt 0:00:27]} 19. Qd3 {[%emt 0:00:35]} d5 {[%emt 0:03:51]} 20. O-O {[%emt 0:06:17]} dxe4 {[%emt 0:01:51]} 21. Qxe4 {[%emt 0:00:05]} Qd5 {[%emt 0:00:29]} 22. Qh4 {[%emt 0:03:58]} Qc5 {[%emt 0:02:42]} 23. Rf3 {[%emt 0:01:25]} Ng6 {[%emt 0:01:41]} 24. Qh5 {[%emt 0:04:35]} Rbd8 {[%emt 0:01:20]} 25. Rd1 {[%emt 0:03:17]} Kg8 {[%emt 0:08:42]} 26. Bd3 {[%emt 0:09:01]} Rd6 {[%emt 0:01:21]} 27. Bc2 {[%emt 0:02:01]} Rxd1+ {[%emt 0:05:21]} 28. Bxd1 {[%emt 0:01:17]} Qd5 {[%emt 0:03:10]} 29. Bb3 {[%emt 0:02:16]} Qd2 {[%emt 0:01:09]} 30. h4 {[%emt 0:06:24]} a5 {[%emt 0:10:18]} 31. Qg5 {[%emt 0:04:56]} a4 {[%emt 0:05:09]} 32. Rf2 {[%emt 0:00:42]} Qc1+ {[%emt 0:05:46]} 33. Rf1 {[%emt 0:03:52]} Qxb2 {[%emt 0:00:18]} 34. Bd5 {[%emt 0:00:53]} Qd2 {[%emt 0:00:18]} 35. c4 {[%emt 0:01:12]} bxc4 {[%emt 0:01:06]} 36. Bxc4 {[%emt 0:00:03]} Qc3 {[%emt 0:02:27]} 37. Bd5 {[%emt 0:02:48]} Qc5 {[%emt 0:02:15]} 38. Rd1 {[%emt 0:06:45]} Qc2 {[%emt 0:07:16]} 39. Rf1 {[%emt 0:02:20]} Qd3 {[%emt 0:01:02]} 40. e4 {[%emt 0:01:55]} Qd4+ {[%emt 0:00:33]} 41. Kh1 {[%emt 0:01:49]} Nf4 {[%emt 0:00:17]} 42. Rxf4 {[%emt 0:05:51]} exf4 {[%emt 0:00:39]} 43. Qxf4 {[%emt 0:00:03]} g6 {[%emt 0:00:14]} 44. Kh2 {[%emt 0:00:48]} h5 {[%emt 0:02:02]} 45. Qd6 {[%emt 0:03:19]} Kg7 {[%emt 0:00:19]} 46. Qd7 {[%emt 0:01:23]} Qf6 {[%emt 0:02:21]} 47. Kh3 {[%emt 0:00:20]} a3 {[%emt 0:01:07]} 48. Qa4 {[%emt 0:00:29]} Qc3+ {[%emt 0:00:15]} 49. Kh2 {[%emt 0:00:23]} Rc8 {[%emt 0:00:47]} 50. Qd7 {[%emt 0:01:17]} Qc7+ {[%emt 0:00:06]} 51. Qxc7 {[%emt 0:00:41]} Rxc7 {[%emt 0:00:01]} 52. Kg3 {[%emt 0:00:19]} f6 {[%emt 0:01:05]} 53. Kf4 {[%emt 0:00:21]} Rc1 {[%emt 0:00:13]} 54. g3 {[%emt 0:01:24]} Rf1+ {[%emt 0:00:20]} 55. Ke3 {[%emt 0:00:09]} Kf8 {[%emt 0:00:27]} 56. Ke2 {[%emt 0:00:17]} Rc1 {[%emt 0:00:20]} 57. Kf3 {[%emt 0:00:11]} Ke7 {[%emt 0:01:10]} 58. Kf4 {[%emt 0:00:43]} Rf1+ {[%emt 0:00:35]} 59. Ke3 {[%emt 0:00:06]} g5 {[%emt 0:00:58]} 60. Ke2 {[%emt 0:00:57]} Rb1 {[%emt 0:00:31]} 61. Kf2 {[%emt 0:00:56]} gxh4 {[%emt 0:01:22]} 62. gxh4 {[%emt 0:00:09]} Kd6 {[%emt 0:00:10]} 63. Kf3 {[%emt 0:01:23]} Ke5 {[%emt 0:00:03]} 64. Bf7 {[%emt 0:00:34]} Rb2 {[%emt 0:00:09]} 65. Bc4 {[%emt 0:01:06]} Rh2 {[%emt 0:00:32]} 66. Kg3 {[%emt 0:00:06]} Rc2 {[%emt 0:00:28]} 67. Bf7 {[%emt 0:00:23]} Kxe4 {[%emt 0:00:30]} 68. Bxh5 {[%emt 0:00:33]} Rxa2 {[%emt 0:00:08]} 69. Bg6+ {[%emt 0:00:06]} f5 {[%emt 0:16:58]} 0-1

[Event "GM ZIA Smirity-A 2025"]
[Site "Dhaka"]
[Date "2025.02.18"]
[Round "4.7"]
[White "Rahman, Syed Mahfuzur"]
[Black "Chowdhury, Sohel"]
[Result "1-0"]
[Annotator "ChessBase"]
[ECO "D44"]
[WhiteElo "2113"]
[BlackElo "2018"]
[PlyCount "73"]
[EventDate "2025.02.17"]
[EventType "swiss"]
[EventCountry "BAN"]
[SourceTitle "playchess.com"]
[Source "ChessBase"]
[SourceQuality "1"]
[TimeControl "5400+30"]

1. d4 {[%emt 0:25:57]} d5 {[%emt 0:00:22]} 2. c4 {[%emt 0:00:03]} c6 {[%emt 0:00:10]} 3. Nc3 {[%emt 0:00:01]} Nf6 {[%emt 0:00:17]} 4. Nf3 {[%emt 0:00:32]} e6 {[%emt 0:00:19]} 5. Bg5 {[%emt 0:06:08]} dxc4 {[%emt 0:09:58]} 6. e4 {[%emt 0:00:23]} b5 {[%emt 0:00:02]} 7. e5 {[%emt 0:00:05]} h6 {[%emt 0:00:15]} 8. Bh4 {[%emt 0:00:05]} g5 {[%emt 0:00:11]} 9. Nxg5 {[%emt 0:00:25]} hxg5 {[%emt 0:00:03]} 10. Bxg5 {[%emt 0:00:07]} Nbd7 {[%emt 0:00:18]} 11. exf6 {[%emt 0:00:36]} Qb6 {[%emt 0:00:59]} 12. g3 {[%emt 0:01:21]} Bb7 {[%emt 0:00:09]} 13. Bg2 {[%emt 0:02:08]} O-O-O {[%emt 0:00:15]} 14. O-O {[%emt 0:05:35]} c5 {[%emt 0:02:02]} 15. d5 {[%emt 0:02:24]} b4 {[%emt 0:00:19]} 16. Na4 {[%emt 0:00:16]} Qb5 {[%emt 0:03:40]} 17. a3 {[%emt 0:04:43]} Ne5 {[%emt 0:23:23]} 18. Qe2 {[%emt 0:08:47]} Nd3 {[%emt 0:03:49]} 19. axb4 {[%emt 0:04:56]} cxb4 {[%emt 0:00:51]} 20. Qe3 {[%emt 0:24:15]} Nc5 {[%emt 0:05:29]} 21. dxe6 {[%emt 0:02:29]} Bxg2 {[%emt 0:01:07]} 22. e7 {[%emt 0:03:57]} Bxf1 {[%emt 0:01:27]} 23. Nxc5 {[%emt 0:01:32]} Qc6 {[%emt 0:10:49]} 24. Rxf1 {[%emt 0:01:27]} Bxe7 {[%emt 0:00:22]} 25. fxe7 {[%emt 0:00:17]} Rd5 {[%emt 0:06:15]} 26. Na6 {[%emt 0:00:45]} Qd7 {[%emt 0:09:25]} 27. Nxb4 {[%emt 0:01:51]} Rb5 {[%emt 0:00:02]} 28. Nc2 {[%emt 0:00:57]} Rg8 {[%emt 0:00:09]} 29. Re1 {[%emt 0:01:21]} Re8 {[%emt 0:02:05]} 30. Na3 {[%emt 0:00:37]} Rb6 {[%emt 0:02:18]} 31. Nxc4 {[%emt 0:00:27]} Re6 {[%emt 0:00:01]} 32. Qc1 {[%emt 0:01:02]} Rc6 {[%emt 0:00:03]} 33. Qf4 {[%emt 0:00:31]} Qd5 {[%emt 0:02:24]} 34. Ne5 {[%emt 0:00:27]} f6 {[%emt 0:03:12]} 35. Nxc6 {[%emt 0:00:33]} fxg5 {[%emt 0:00:01]} 36. Qb8+ {[%emt 0:00:35]} Kd7 {[%emt 0:00:04]} 37. Qd8+ {[%emt 0:01:25]} 1-0

[Event "GM ZIA Smirity-A 2025"]
[Site "Dhaka"]
[Date "2025.02.18"]
[Round "4.9"]
[White "Tashriq Saihan, Shan"]
[Black "Noshin, Anjum"]
[Result "1/2-1/2"]
[Annotator "NA"]
[ECO "C54"]
[WhiteElo "1974"]
[BlackElo "2053"]
[PlyCount "43"]
[EventDate "2025.02.17"]
[EventType "swiss"]
[EventCountry "BAN"]
[SourceTitle "playchess.com"]
[Source "ChessBase"]
[SourceQuality "1"]
[TimeControl "5400+30"]

1. e4 {[%emt 0:00:03]} e5 {[%emt 0:01:28]} 2. Nf3 {[%emt 0:00:17]} Nc6 {[%emt 0:00:25]} 3. Bc4 {[%emt 0:00:06]} Nf6 {[%emt 0:00:04]} 4. d3 {[%emt 0:00:17]} Bc5 {[%emt 0:00:09]} 5. c3 {[%emt 0:01:33]} d6 {[%emt 0:00:27]} 6. Nbd2 {[%emt 0:00:22]} Bb6 {[%emt 0:01:53]} 7. Nf1 {[%emt 0:04:12]} O-O {[%emt 0:03:41]} 8. Bb3 {[%emt 0:00:25]} d5 {[%emt 0:02:04]} 9. Qe2 {[%emt 0:00:17]} dxe4 {[%emt 0:07:05]} 10. dxe4 {[%emt 0:00:18]} Qe7 {[%emt 0:02:53]} 11. h3 {[%emt 0:01:37]} Be6 {[%emt 0:02:04]} 12. Bc2 {[%emt 0:02:31]} Nd7 {[%emt 0:06:36]} 13. Ng3 {[%emt 0:01:32]} Rfe8 {[%emt 0:03:13]} 14. O-O {[%emt 0:05:04]} Rad8 {[%emt 0:03:21]} 15. Ng5 {[%emt 0:01:58]} h6 {[%emt 0:09:19]} 16. Nxe6 {[%emt 0:02:25]} Qxe6 {[%emt 0:00:37]} 17. Nf5 {[%emt 0:01:55]} Qg6 {[%emt 0:06:12]} 18. Be3 {[%emt 0:01:48]} Ne7 {[%emt 0:03:46]} 19. Rad1 {[%emt 0:03:08]} Nxf5 {[%emt 0:01:14]} 20. exf5 {[%emt 0:00:32]} Qf6 {[%emt 0:01:27]} 21. Rd2 {[%emt 0:01:41]} Bxe3 {[%emt 0:11:14]} 22. Qxe3 {[%emt 0:01:32]} 1/2-1/2

[Event "GM ZIA Smirity-A 2025"]
[Site "Dhaka"]
[Date "2025.02.18"]
[Round "4.10"]
[White "Aiyan, Rahman"]
[Black "Swarnavo Choudhury"]
[Result "1/2-1/2"]
[Annotator "ChessBase"]
[ECO "B44"]
[WhiteElo "1827"]
[BlackElo "2120"]
[PlyCount "89"]
[EventDate "2025.02.17"]
[EventType "swiss"]
[EventCountry "BAN"]
[SourceTitle "playchess.com"]
[Source "ChessBase"]
[SourceQuality "1"]
[TimeControl "5400+30"]

1. e4 {[%emt 1:31:00]} c5 {[%emt 0:09:45]} 2. Nf3 {[%emt 0:00:00]} e6 {[%emt 0:00:08]} 3. d4 {[%emt 0:00:00]} cxd4 {[%emt 0:00:05]} 4. Nxd4 {[%emt 0:00:00]} Nc6 {[%emt 0:00:04]} 5. Nb5 {[%emt 0:00:00]} a6 {[%emt 0:01:00]} 6. Nd6+ {[%emt 0:00:00]} Bxd6 {[%emt 0:00:50]} 7. Qxd6 {[%emt 0:00:00]} Qe7 {[%emt 0:00:08]} 8. Qxe7+ {[%emt 0:00:00]} Ngxe7 {[%emt 0:00:22]} 9. Nc3 {[%emt 0:00:00]} d5 {[%emt 0:00:44]} 10. exd5 {[%emt 0:04:30]} Nb4 {[%emt 0:00:48]} 11. Bd3 {[%emt 0:00:00]} Nxd3+ {[%emt 0:07:46]} 12. cxd3 {[%emt 0:00:00]} exd5 {[%emt 0:00:19]} 13. d4 {[%emt 0:00:00]} b5 {[%emt 0:01:34]} 14. Bg5 {[%emt 0:00:00]} Be6 {[%emt 0:04:16]} 15. Bxe7 {[%emt 0:00:00]} Kxe7 {[%emt 0:00:15]} 16. Rc1 {[%emt 0:00:00]} Rhc8 {[%emt 0:07:07]} 17. Kd2 {[%emt 0:00:00]} Kd6 {[%emt 0:11:15]} 18. Ne2 {[%emt 0:00:00]} a5 {[%emt 0:09:49]} 19. Rxc8 {[%emt 0:00:00]} Rxc8 {[%emt 0:00:13]} 20. Rc1 {[%emt 0:00:00]} Rc4 {[%emt 0:02:16]} 21. b3 {[%emt 0:00:00]} Rxc1 {[%emt 0:01:59]} 22. Nxc1 {[%emt 0:00:00]} b4 {[%emt 0:02:07]} 23. Nd3 {[%emt 0:00:00]} Bf5 {[%emt 0:00:12]} 24. Nc5 {[%emt 0:00:00]} g5 {[%emt 0:04:21]} 25. Nb7+ {[%emt 0:00:00]} Kc7 {[%emt 0:00:13]} 26. Nc5 {[%emt 0:00:00]} h5 {[%emt 0:07:04]} 27. g3 {[%emt 0:02:48]} h4 {[%emt 0:05:56]} 28. f4 {[%emt 0:03:01]} hxg3 {[%emt 0:04:01]} 29. hxg3 {[%emt 0:00:05]} gxf4 {[%emt 0:00:16]} 30. gxf4 {[%emt 0:00:02]} Kd6 {[%emt 0:02:23]} 31. Nb7+ {[%emt 0:00:15]} Kc7 {[%emt 0:00:13]} 32. Nc5 {[%emt 0:00:01]} Kc6 {[%emt 0:01:00]} 33. Ke3 {[%emt 0:00:58]} Bb1 {[%emt 0:00:57]} 34. Kd2 {[%emt 0:00:04]} Bf5 {[%emt 0:03:08]} 35. Ke3 {[%emt 0:00:18]} f6 {[%emt 0:00:09]} 36. Kd2 {[%emt 0:00:29]} Bc8 {[%emt 0:00:46]} 37. Ke3 {[%emt 0:00:20]} Kd6 {[%emt 0:00:42]} 38. Kf3 {[%emt 0:02:42]} Kc6 {[%emt 0:00:39]} 39. Ke3 {[%emt 0:00:31]} Kd6 {[%emt 0:00:32]} 40. Kf3 {[%emt 0:00:10]} Ke7 {[%emt 0:01:52]} 41. Ke3 {[%emt 0:00:39]} Kf7 {[%emt 0:00:22]} 42. Na4 {[%emt 0:01:27]} Ke6 {[%emt 0:01:57]} 43. Nc5+ {[%emt 0:00:35]} Kf7 {[%emt 0:02:10]} 44. Na4 {[%emt 0:00:17]} Ke6 {[%emt 0:02:59]} 45. Nc5+ {[%emt 0:02:48]} 1/2-1/2